[Event "SixDays Budapest March GM-B 2023"]
[Site "Budapest"]
[Date "2023.03.24"]
[Round "1.4"]
[White "Moksh Amit Doshi"]
[Black "Royal, Shreyas"]
[Result "0-1"]
[ECO "D26"]
[WhiteElo "2388"]
[BlackElo "2452"]
[Annotator "TA"]
[PlyCount "150"]
[EventDate "2023.03.24"]
[EventType "tourn"]
[EventCountry "HUN"]
[SourceTitle "playchess.com"]
[Source "ChessBase"]
[SourceQuality "1"]
[TimeControl "5400+30"]

{[%evp 20,150,0,0,0,0,0,0,13,9,9,11,35,0,0,0,0,-13,0,-33,0,-41,-6,-2,50,47,45,-41,-33,-41,-36,-37,-39,-37,-26,-33,-39,-33,-28,-37,-13,-39,-40,-133,-45,-35,-35,-36,-43,-43,-23,-25,-18,-62,-44,-45,0,0,0,0,0,0,0,0,10,10,5,0,0,0,60,46,71,1,124,35,50,53,53,46,64,83,87,96,88,66,67,58,120,134,108,0,8,-6,0,-15,0,-51,-8,-8,-8,-163,-177,-372,-367,-338,-342,-346,-321,-845,-844,-836,-835,-1191,-1016,-788,0,-1148,-1183,-1039,-1036,-785,-770,-29959,-29963,-29956,-10912,-29975,-29976,-29975,-29976,-29973,-29967]} 1. d4 {[%emt 0:02:31]} d5 {[%emt 0:00:37]} 2. c4 {[%emt 0:00:26]} dxc4 {[%emt 0:00:05]} 3. Nf3 {[%emt 0:01:22]} Nf6 {[%emt 0:00:06]} 4. e3 {[%emt 0:00:48]} e6 {[%emt 0:00:09]} 5. Bxc4 {[%emt 0:00:09]} c5 {[%emt 0:00:04]} 6. O-O {[%emt 0:00:15]} Nc6 {[%emt 0:00:05]} 7. Nc3 {[%emt 0:01:29]} a6 {[%emt 0:00:13]} 8. Bd3 {[%emt 0:01:46]} Be7 {[%emt 0:06:06]} 9. a3 {[%emt 0:02:12]} cxd4 {[%emt 0:04:06]} 10. exd4 {[%emt 0:00:09]} O-O {[%emt 0:00:09]} 11. Bg5 {[%emt 0:07:47]} b5 {[%emt 0:06:15] E57: Nimzo-Indian: Rubinstein: Main Line: 7...Nc6 8 a3 dxc4 9 Bxc4 cxd4.} 12. Qe2 {[%emt 0:04:07]} Bb7 {[%emt 0:03:33]} 13. Rad1 {[%emt 0:01:58] [#]} Re8 $146 {[%emt 0:00:55] The position is equal.} ({Predecessor:} 13... b4 14. Ne4 bxa3 15. bxa3 Nxe4 16. Qxe4 g6 17. Qh4 Re8 18. Be4 Na5 19. Rfe1 Rb8 {1-0 Caruana,F (2781)-Tari,A (2650) Chess.com Rapid Wk10 Swiss 2022 (1)}) 14. Rfe1 {[%emt 0:02:31]} Rc8 {[%emt 0:08:00]} 15. Bb1 {[%emt 0:04:57]} Nd5 {[%emt 0:16:22]} 16. Ne4 {[%emt 0:09:00][%cal Oe4c5]} Bxg5 17. Nfxg5 {[%emt 0:03:11]} h6 {[%emt 0:02:10]} (17... Nf4 $2 18. Qg4 Nxg2 19. Nxh7 $18) 18. Nf3 {[%emt 0:00:18]} Qc7 {[%emt 0:04:13]} 19. h4 {[%emt 0:07:10]} Red8 {[%emt 0:05:37]} 20. Ng3 {[%emt 0:11:17]} Nce7 {[%emt 0:03:26][%cal Bc6e7,Be7d5,Bd5f6][%mdl 32]} (20... Nf6 {simplifies} 21. Ne4 Ne7 22. Nc5 Bxf3 23. Qxf3 Nc6) 21. Ne5 {[%emt 0:08:53]} Nf4 {[%emt 0:01:22] Against Nh5} (21... Nf6 $11) 22. Qg4 $14 {[%emt 0:00:59]} Ned5 {[%emt 0:01:03]} (22... Nxg2 $2 23. Nh5 g6 24. Bxg6 Nxg6 25. Nxg6 $18) 23. Ne2 {[%emt 0:06:44]} ({White should try} 23. Be4 $14) 23... Nxe2+ $15 {[%emt 0:01:48]} 24. Rxe2 {[%emt 0:00:20]} Qe7 {[%emt 0:01:21]} 25. Red2 {[%emt 0:01:53]} (25. Qe4 $2 f5 26. Qf3 Nc3 27. Qxc3 Rxc3 28. bxc3 Qxa3 $19) 25... Rc7 $36 {[%emt 0:02:46][%mdl 2048] Black has some pressure.} 26. Qg3 {[%emt 0:00:43]} Nf6 {[%emt 0:05:30]} 27. Qf4 {[%emt 0:02:13]} Rdc8 {[%emt 0:01:12]} 28. Nd3 {[%emt 0:00:38]} Rc4 29. Ne5 Qd6 {[%emt 0:05:43]} (29... Rc1 {simplifies} 30. Nd3 Rxd1+ 31. Rxd1 Be4) 30. Qe3 {[%emt 0:06:49]} Rc1 {[%emt 0:00:41]} 31. Rd3 {[%emt 0:00:49] [#]} (31. f3 $15) 31... Qd5 {[%emt 0:01:56] Black is more active.} 32. f3 {[%emt 0:00:34]} R1c7 {[%emt 0:00:33]} 33. R3d2 $1 {[%emt 0:00:23]} Qd8 {[%emt 0:00:25]} 34. Nd3 {[%emt 0:00:49]} Qd6 {[%emt 0:02:09]} 35. Nc5 {[%emt 0:00:59]} (35. Qf4 {simplifies} Qxf4 36. Nxf4 Nd5 37. Nxd5 Bxd5 38. Kf2) 35... Bd5 {[%emt 0:00:13]} 36. b4 {[%emt 0:00:11]} Qg3 {[%emt 0:01:20]} 37. Qf2 {[%emt 0:00:12]} Qxf2+ {[%emt 0:00:09]} (37... Qf4 {seems wilder.} 38. Be4 Ra7 39. Rc2 Qd6) 38. Kxf2 {[%emt 0:00:10]} Ra7 {[%emt 0:01:08]} 39. Bd3 {[%emt 0:02:07]} Rb8 {[%emt 0:02:24]} 40. Rb2 {[%emt 0:00:07]} Rd8 {[%emt 0:02:08]} 41. Ke3 {[%emt 0:01:26]} Ne8 {[%emt 0:01:03]} 42. Ra1 {[%emt 0:01:00]} Nd6 {[%emt 0:01:45]} 43. a4 {[%emt 0:00:27] axb5 is the strong threat.} Raa8 {[%emt 0:00:26]} 44. a5 {[%emt 0:01:00]} f5 {[%emt 0:01:38]} (44... Nc8 $11) 45. Re2 {[%emt 0:01:48]} (45. Re1 $5 {[%cal Re3f2]}) 45... Kf7 {[%emt 0:00:30]} 46. Kf4 {[%emt 0:00:26]} ({Better is} 46. g4 $16) 46... Kf6 {[%emt 0:00:06]} (46... Nb7 $11 {remains equal.}) 47. h5 {[%emt 0:00:11]} (47. Rae1 $16) 47... Nf7 {[%emt 0:01:32]} 48. Rae1 {[%emt 0:00:22][%cal Re2e6] White wants to mate with Rxe6+.} Rd6 {[%emt 0:00:04] [#]} 49. Re5 $1 {[%emt 0:02:29]} Nd8 {[%emt 0:00:04] [#]} (49... g5+ 50. hxg6) 50. Bxf5 $1 {[%emt 0:01:40] Strongly threatening Be4.} g5+ {[%emt 0:00:30]} 51. hxg6 {[%emt 0:01:07] Hoping for Be4.} exf5 {[%emt 0:00:04]} 52. Rxf5+ {[%emt 0:00:23]} Kxg6 {[%emt 0:00:06]} 53. Ke5 $1 {[%emt 0:02:40]} Bc4 {[%emt 0:02:08]} (53... Rc6 $14) 54. Kxd6 $16 {[%emt 0:00:26]} Kxf5 {[%emt 0:00:05] [#]} 55. Kc7 {[%emt 0:01:51]} (55. Kd7 $1 $16 {And now Re8 would win.} Bf7 56. g3) 55... Ne6+ {[%emt 0:01:57]} 56. Kb6 {[%emt 0:00:06]} (56. Nxe6 {simplifies} Bxe6 57. Kb6 Bc4 58. Re4) 56... Rd8 {[%emt 0:03:16]} 57. Kxa6 {[%emt 0:01:12] Threatens to win with Nxe6.} Nxd4 {[%emt 0:01:10]} 58. Kb7 {[%emt 0:00:54]} (58. Rd1 $11) 58... Rg8 {[%emt 0:01:41]} (58... Nc2 $5 {[%cal Rc2e1]} 59. g4+ Kg6 $15) 59. g4+ {[%emt 0:00:49]} Kg5 {[%emt 0:00:13]} 60. Ne4+ $2 {[%emt 0:00:35] White is now going downhill.} (60. Re5+ $11 {and White is okay.} Kh4 61. Rh5+ Kg3 62. Rxh6) 60... Kf4 $19 {[%emt 0:00:23]} 61. Nd6 $2 {[%emt 0:00:05]} (61. Nc5 Nc2 62. Rb1) 61... Bd5+ {[%emt 0:00:23]} (61... Nxf3 62. Re4+ Kg3 63. Nxc4 bxc4 64. Rxc4 Rg7+ 65. Rc7 $16) (61... Kxf3 62. a6 $15) 62. Kb6 {[%emt 0:00:04]} Bxf3 {[%emt 0:00:27]} 63. a6 {[%emt 0:00:27]} Rg6 {[%emt 0:02:03]} (63... Kxg4 $2 64. Rg1+ (64. Nxb5 $2 Rb8+ 65. Kc5 Nxb5 $19) 64... Kf4 65. Rxg8 $18) 64. Kc5 $2 {[%emt 0:00:08]} (64. Kc7 Nc6 65. Nxb5) 64... Nb3+ {[%emt 0:00:08]} (64... Bxg4 $2 65. Re4+ Kg5 66. Rxd4 $18) (64... Kxg4 $2 65. Rg1+ (65. Nxb5 Ne6+ 66. Kb6 Nd4+ 67. Kc5 Ne6+ 68. Kc4 Ng5 $17) 65... Kh5 66. Rxg6 Kxg6 67. Kxd4 $18) 65. Kxb5 {[%emt 0:00:17]} Rxd6 {[%emt 0:00:04]} 66. a7 {[%emt 0:00:05]} Rd7 {[%emt 0:00:39]} 67. Ka6 {[%emt 0:00:14]} Rd6+ {[%emt 0:00:53]} 68. Kb5 {[%emt 0:00:05]} Nd4+ {[%emt 0:00:20]} 69. Kc5 {[%emt 0:00:08]} Rd5+ {[%emt 0:00:23]} 70. Kc4 {[%emt 0:00:05]} Rd8 {[%emt 0:00:29]} (70... Kxg4 $2 71. a8=Q $18 (71. a8=B $2 {loses.} Rg5 $19) (71. a8=B $2 {perishes.} Rg5 $19)) 71. b5 {[%emt 0:00:20] [#]} Nxb5 $1 {[%emt 0:01:38]} 72. Kxb5 {[%emt 0:00:06]} Kxg4 {[%emt 0:00:03]} (72... Bxg4 $142 73. Re7 h5 74. Rb7 Ra8 75. Rf7+ Kg3 76. Ka6 Bf3 77. Rg7+ Kf2 78. Rg6 Rc8 79. Kb5 h4 80. Rh6 Kg3 81. Rg6+ Bg4 82. Rh6 h3 83. Rh7 Bf3 84. Ka4 h2 85. Rh6 h1=Q 86. Rxh1 Bxh1 87. Ka5 Bf3 88. Kb5 Rc2 89. Ka6 Kf4 90. Kb5 Ke5 91. Kb4 Kd4 92. Kb3 Rc7 93. a8=B Bxa8 94. Kb4 Rb7+ 95. Ka3 Kc4 96. Ka2 Kc3 97. Ka1 Kc2 98. Ka2 Ra7#) 73. Kc5 {[%emt 0:00:15]} h5 {[%emt 0:00:11][%cal Bh6h5,Bh5h4][%mdl 32] Black mates.} 74. Rb1 {[%emt 0:00:03]} Ra8 {[%emt 0:00:26]} 75. Kb6 {[%emt 0:00:04]} h4 {[%emt 0:00:07] Weighted Error Value: White=0.22 (precise) /Black=0.18 (very precise)} 0-1

[Event "SixDays Budapest March GM-B 2023"]
[Site "Budapest"]
[Date "2023.03.24"]
[Round "1.5"]
[White "Varga, Csaba Zoltan"]
[Black "Pribelszky, Bence"]
[Result "1/2-1/2"]
[ECO "D02"]
[WhiteElo "2278"]
[BlackElo "2380"]
[Annotator "TA"]
[PlyCount "172"]
[EventDate "2023.03.24"]
[EventType "tourn"]
[EventCountry "HUN"]
[SourceTitle "playchess.com"]
[Source "ChessBase"]
[SourceQuality "1"]
[TimeControl "5400+30"]

{[%evp 9,172,-24,-6,-12,-6,-3,1,-21,-8,-22,-21,-27,-28,-58,-47,-73,-60,-66,-38,-31,-23,-65,-69,-60,0,-41,-37,-173,-106,-106,-39,-39,-36,-43,-55,-40,-40,-51,-42,-53,-19,-48,-48,-53,-49,-73,-41,-54,-26,-29,-32,-40,-26,-45,0,0,15,-18,-7,-14,-12,-11,-13,-45,-9,-255,0,0,108,102,103,87,107,108,98,91,260,230,213,153,120,74,58,44,41,150,43,48,44,55,81,81,85,76,107,106,85,117,92,76,542,475,416,216,429,404,399,383,518,90,89,0,97,0,0,0,99,0,0,0,128,111,425,341,307,288,300,421,401,397,383,337,327,238,6291,0,0,0,0,0,0,0,0,0,0,0,0,0,0,0,0,0,0,0,0,0,0,0,0,0,0,0,0,0,0]} 1. c3 {[%emt 0:04:01]} Nf6 {[%emt 0:01:12]} 2. d4 {[%emt 0:00:23]} d5 {[%emt 0:00:07]} 3. Bf4 {[%emt 0:00:05]} e6 {[%emt 0:00:22]} 4. Nf3 {[%emt 0:00:27]} Bd6 {[%emt 0:00:08]} 5. Ne5 {[%emt 0:00:25]} O-O {[%emt 0:00:36]} (5... Nh5 $5 {[%cal Rh5f4]} 6. Bc1 O-O $11) 6. e3 {[%emt 0:00:30] D02: 1 d4 d5 2 Nf3 sidelines, including 2...Nf6 3 g3 and 2...Nf6 3 Bf4.} c5 {[%emt 0:00:36]} 7. Nd2 {[%emt 0:00:36]} Qc7 {[%emt 0:08:07] is the new trend.} 8. Bg3 {[%emt 0:02:08]} b6 {[%emt 0:07:34]} 9. Qa4 {[%emt 0:05:10]} Bb7 {[%emt 0:05:53]} 10. Bd3 {[%emt 0:05:22]} Nc6 {[%emt 0:01:21]} 11. f4 {[%emt 0:01:18] [#]} Ne7 $146 {[%emt 0:01:58]} ({Predecessor:} 11... a6 12. O-O b5 13. Qd1 Ne7 14. Qf3 Nf5 15. Bf2 Be7 16. Ng4 Nd6 17. Nxf6+ Bxf6 18. dxc5 {½-½ Kardon,Z (2222)-Antal,J (2097) HUN-chT2 Breyer 0506 2005 (1)}) 12. Qc2 {[%emt 0:03:17]} c4 {[%emt 0:01:30]} (12... b5 $5 {[%cal Rc5c4]}) 13. Be2 {[%emt 0:00:20]} Nf5 {[%emt 0:00:05]} 14. Bf2 {[%emt 0:00:10]} Be7 {[%emt 0:00:26]} 15. Bf3 {[%emt 0:03:24]} Nd6 {[%emt 0:00:33]} 16. Bh4 {[%emt 0:01:08]} Nf5 {[%emt 0:07:22]} 17. Bf2 {[%emt 0:00:06]} b5 {[%emt 0:00:35]} 18. e4 {[%emt 0:02:23]} (18. g4 $15 Nd6 19. a4) 18... Nd6 {[%emt 0:06:42]} (18... dxe4 $19 19. Nxe4 Nd5) 19. exd5 $17 {[%emt 0:01:07]} exd5 {[%emt 0:00:03]} (19... Nxd5 $17 20. g3 Nf5) 20. O-O $15 {[%emt 0:01:32]} Nfe4 {[%emt 0:03:08]} 21. Rae1 {[%emt 0:00:31]} a5 {[%emt 0:05:59]} 22. Nxe4 {[%emt 0:05:08]} dxe4 {[%emt 0:00:28]} 23. Bg4 {[%emt 0:00:07]} Bd5 {[%emt 0:05:07]} 24. Bh3 {[%emt 0:03:31]} f5 {[%emt 0:04:17]} 25. Be3 {[%emt 0:03:21]} b4 {[%emt 0:01:11]} 26. Qa4 {[%emt 0:01:11]} Qb7 {[%emt 0:03:04]} 27. Rc1 {[%emt 0:04:59]} g6 {[%emt 0:03:36]} (27... Rfb8 $5 {[%cal Rb7b5]}) 28. Rf2 {[%emt 0:08:46]} Rfb8 {[%emt 0:08:23]} 29. g4 {[%emt 0:02:57]} Kh8 {[%emt 0:09:31]} 30. Kh1 {[%emt 0:10:38]} bxc3 {[%emt 0:06:33]} 31. Rxc3 {[%emt 0:00:29]} Qb5 {[%emt 0:04:15]} 32. Qd1 {[%emt 0:01:05]} Rf8 {[%emt 0:00:03]} 33. a4 {[%emt 0:01:22]} Qe8 {[%emt 0:01:21]} 34. g5 {[%emt 0:01:27]} Rb8 {[%emt 0:01:15]} 35. Bf1 {[%emt 0:02:27][%cal Re5c4]} Rb4 {[%emt 0:00:02]} 36. Ra3 {[%emt 0:01:55]} Rb3 {[%emt 0:02:25]} 37. Nxc4 $2 {[%emt 0:03:04]} Nxc4 $2 {[%emt 0:02:21]} (37... Rd3 $19 38. Nxd6 Bxd6) 38. Rxb3 $11 {[%emt 0:00:14]} Qxa4 {[%emt 0:00:01]} (38... Nxe3 $1 $11 39. Rxe3 Bd6) 39. Bxc4 $16 {[%emt 0:01:13]} Bxc4 {[%emt 0:00:06] [#]} 40. Rd3 {[%emt 0:00:05][%mdl 512]} Qb5 {[%emt 0:01:09]} 41. Rc3 {[%emt 0:02:02][%cal Od4d5]} Bb4 {[%emt 0:00:20]} 42. Rc1 {[%emt 0:00:09][%cal Od4d5]} Bd3 $2 {[%emt 0:01:08]} (42... Bd5 $16 {was necessary.}) 43. Qb3 $18 {[%emt 0:01:43]} Qd7 {[%emt 0:00:33]} 44. d5 {[%emt 0:00:58]} Rd8 {[%emt 0:00:01]} 45. Bd4+ {[%emt 0:02:47]} ({White should try} 45. h4) 45... Kg8 $16 {[%emt 0:00:02]} 46. d6+ {[%emt 0:00:35]} Qf7 {[%emt 0:00:18]} 47. Qxf7+ {[%emt 0:00:08]} (47. Qd1 $5 {[%cal Rd4f6]}) 47... Kxf7 {[%emt 0:00:02]} 48. Rc7+ {[%emt 0:00:16]} Ke6 {[%emt 0:00:42]} 49. Rxh7 {[%emt 0:00:54] Rg7 is the strong threat.} Rxd6 {[%emt 0:01:14]} 50. Be3 {[%emt 0:00:55]} Bb5 {[%emt 0:01:03]} 51. Rb7 $1 {[%emt 0:00:55]} Rd1+ {[%emt 0:00:41]} 52. Kg2 {[%emt 0:00:08]} Bd3 {[%emt 0:00:29]} 53. Rg7 {[%emt 0:01:36]} Be1 {[%emt 0:00:27]} 54. Rxg6+ {[%emt 0:00:07]} Kd5 $2 {[%emt 0:00:32][%mdl 8192] [#]} (54... Kd7 $16 {is more resistant.}) 55. Rf6 $1 $18 {[%emt 0:01:02][%cal Og5g6]} Bxf2 {[%emt 0:00:05]} 56. Rxf5+ {[%emt 0:00:32]} (56. Bxf2 $2 Bf1+ 57. Kh1 (57. Kg3 $2 Rd3+ $19) 57... Bh3+ 58. Bg1 e3 $19) (56. Kxf2 $142 {[%cal Og5g6] aiming for g6!} Rf1+ 57. Kg2) 56... Kc4 $2 {[%emt 0:00:17]} (56... Kc6 57. Kxf2 (57. Bxf2 Bf1+ 58. Kg3 Rd3+ 59. Kh4 Rh3+ 60. Kg4 Rxh2 $18) 57... Rf1+ 58. Kg2 Rf3) 57. Kxf2 {[%emt 0:00:30][%cal Og5g6][%mdl 4096] Endgame KRB-KRB} Rf1+ {[%emt 0:00:22]} 58. Kg2 {[%emt 0:00:06][%cal Og5g6]} Rf3 {[%emt 0:00:10]} 59. Rc5+ $2 {[%emt 0:02:28]} (59. g6 $18 {and the rest is easy. Strongly threatening g7.} Bf1+ 60. Kh1 (60. Kg1 Bh3 $17)) 59... Kb4 $16 {[%emt 0:00:05]} 60. Bg1 {[%emt 0:04:08]} (60. Bd4 $16) 60... Bf1+ $11 {[%emt 0:01:50]} 61. Kh1 {[%emt 0:00:08]} e3 $1 {[%emt 0:00:42]} 62. Re5 {[%emt 0:00:34]} Rf2 {[%emt 0:00:23]} (62... e2 $11) 63. Re4+ {[%emt 0:01:00]} (63. Rxe3 $2 Bg2#) (63. Bxf2 $2 exf2 64. f5 Bd3 $19) (63. h4 $1 $16 Rxf4 64. Kh2 (64. Bxe3 Rxh4+ 65. Kg1 Bd3 $16) 64... Rxh4+ 65. Kg3) 63... Kb5 {[%emt 0:00:15][%csl Gf2][%cal Rf1g2]} (63... Kc5 $5 64. Re5+ $8 (64. Rxe3 $2 Bg2#) 64... Kd6 $11) 64. Re5+ {[%emt 0:00:58]} (64. Rxe3 $2 Bg2#) 64... Kc6 {[%emt 0:00:52]} (64... Kb4 $11 {keeps the balance.} 65. h4 (65. Rxe3 $2 Bg2#) (65. Bxf2 $2 exf2 66. f5 Bd3 $19) 65... Rxf4) 65. h4 $1 $16 {[%emt 0:02:04][%cal Bh2h4,Bh4h5,Bh5h6][%mdl 32]} (65. Rxa5 $2 Bg2#) (65. Bxf2 exf2 66. h4 Bh3) 65... Be2 $2 {[%emt 0:00:29][%mdl 8192]} 66. Rxe3 $18 {[%emt 0:00:44]} (66. Bxf2 {leads to mate.} exf2 67. Kh2 f1=Q 68. Re6+ Kd5 69. Re5+ Kd4 70. Rxa5 Bf3 71. Ra4+ Ke3 72. Ra3+ Kf2 73. Rxf3+ Kxf3 74. h5 Qg2#) 66... Bf3+ {[%emt 0:00:02]} 67. Rxf3 {[%emt 0:00:06]} Rxf3 {[%emt 0:00:03] [#] KR-KB} 68. Bh2 $1 {[%emt 0:01:48]} Kd5 {[%emt 0:00:48] [#]} 69. h5 $1 {[%emt 0:01:27]} Ke6 {[%emt 0:00:28]} 70. h6 {[%emt 0:00:13] Black must now prevent h7.} Kf5 {[%emt 0:00:08]} 71. Kg2 {[%emt 0:01:17]} Rb3 $2 {[%emt 0:00:03]} (71... Rd3 72. Bg1 (72. h7 Rd8 $11) 72... Rd7) 72. Bg1 $2 {[%emt 0:00:14]} (72. h7 $18 Rb8 73. g6) 72... Rxb2+ $11 {[%emt 0:00:29] The position is equal.} (72... Kg6 $2 73. Bd4 Rb7 74. Bc3 $18) 73. Kf3 {[%emt 0:00:08] Threatens to win with h7.} Rb3+ {[%emt 0:02:00]} 74. Be3 {[%emt 0:00:24] And now h7 would win.} Rb7 {[%emt 0:00:03]} 75. Bd4 {[%emt 0:00:37]} Rb3+ {[%emt 0:00:53]} 76. Ke2 {[%emt 0:01:12]} Rh3 {[%emt 0:00:11]} (76... Kxf4 $2 77. g6 Rh3 78. g7 $18) 77. Be5 {[%emt 0:00:28]} a4 {[%emt 0:00:29]} 78. Kd2 {[%emt 0:00:27]} Kg6 {[%emt 0:00:30]} 79. Kc2 {[%emt 0:00:18]} Kf5 {[%emt 0:00:15]} 80. Kb2 {[%emt 0:00:26]} Kg6 {[%emt 0:00:04]} 81. Ka2 {[%emt 0:00:04]} Kf5 {[%emt 0:00:04]} 82. Bd6 {[%emt 0:01:16]} Kg6 {[%emt 0:00:17]} 83. Kb2 {[%emt 0:00:16]} Kf5 {[%emt 0:00:11]} 84. Kc2 {[%emt 0:00:19]} Kg6 {[%emt 0:00:04]} 85. Kd2 {[%emt 0:00:07]} Kf5 {[%emt 0:00:43]} 86. Be5 {[%emt 0:02:14]} Kg6 {[%emt 0:00:27] Black defended with fortune.   Weighted Error Value: White=0.30/Black=0.36} 1/2-1/2